fUST/lending_fUST_20250912
["ID","MTS","AMOUNT","RATE_DAILY","PERIOD"]
[385212110,1757686243125,-480.0,0.00013698,2]
[385212111,1757686243134,-489.81829953,0.00013698,2]
[385212112,1757686243143,-480.0,0.00013698,2]
[385212113,1757686243153,-480.0,0.00013698,2]
[385212114,1757686243162,-480.0,0.00013698,2]
[385212115,1757686243171,-379.84840957,0.00013698,2]
[385212116,1757686243181,-480.0,0.00013698,2]
[385212117,1757686243192,-480.0,0.00013698,2]
[385212118,1757686243202,-322.77454181,0.00013698,2]
[385212119,1757686243211,-500.0,0.00013698,2]
[385212120,1757686243220,-912.55543,0.00013699,2]
[385212121,1757686243231,-63844.084512,0.00013699,2]
[385212122,1757686243240,-992.645586,0.00013699,2]
[385212123,1757686243250,-287.92593992,0.00013872,2]
[385212124,1757686243260,-168.24687023,0.00013872,2]
[385212125,1757686243270,-1070.42,0.00013889,2]
[385212126,1757686243280,-300.0,0.00013971,2]
[385212127,1757686243290,-300.0,0.00013971,2]
[385212128,1757686243299,-300.0,0.00013971,2]
[385212129,1757686243309,-300.0,0.00013971,2]
[385212130,1757686243318,-300.0,0.00013971,2]
[385212131,1757686243328,-300.0,0.00013971,2]
[385212132,1757686243337,-300.0,0.00013971,2]
[385212133,1757686243347,-300.0,0.00013971,2]
[385212134,1757686243356,-300.0,0.00013971,2]
[385212135,1757686243366,-300.0,0.00013971,2]
[385212136,1757686243375,-300.0,0.00013971,2]
[385212137,1757686243385,-300.0,0.00013971,2]
[385212138,1757686243394,-300.0,0.00013971,2]
[385212139,1757686243403,-300.0,0.00013971,2]
[385212140,1757686243413,-300.0,0.00013971,2]
[385212141,1757686243423,-480.0,0.00013972,2]
[385212142,1757686243432,-480.0,0.00013972,2]
[385212143,1757686243441,-480.0,0.00013972,2]
[385212144,1757686243451,-399.37135803,0.00013972,2]
[385212145,1757686243460,-490.88282289,0.00013972,2]
[385212146,1757686243469,-480.0,0.00013972,2]
[385212147,1757686243480,-480.0,0.00013972,2]
[385212148,1757686243489,-480.0,0.00013972,2]
[385212149,1757686243498,-480.0,0.00013972,2]
[385212150,1757686243508,-480.0,0.00013972,2]
[385212151,1757686243517,-480.0,0.00013972,2]
[385212152,1757686243527,-480.0,0.00013972,2]
[385212153,1757686243536,-480.0,0.00013972,2]
[385212154,1757686243546,-480.0,0.00013972,2]
[385212155,1757686243556,-480.0,0.00013972,2]
[385212156,1757686243565,-480.0,0.00013972,2]
[385212157,1757686243575,-480.0,0.00013972,2]
[385212158,1757686243584,-480.0,0.00013972,2]
[385212159,1757686243593,-480.0,0.00013972,2]
[385212160,1757686243603,-480.0,0.00013972,2]
[385212161,1757686243612,-480.0,0.00013972,2]
[385212162,1757686243621,-486.86523666,0.00013972,2]
[385212163,1757686243631,-480.0,0.00013972,2]
[385212164,1757686243640,-317.67755819,0.00013972,2]
[385212165,1757686243649,-480.0,0.00013972,2]
[385212166,1757686243659,-480.0,0.00013972,2]
[385212167,1757686243668,-480.0,0.00013972,2]
[385212168,1757686243677,-480.0,0.00013972,2]
[385212169,1757686243686,-480.0,0.00013972,2]
[385212170,1757686243696,-500.11725606,0.00013972,2]
[385212171,1757686243705,-480.0,0.00013972,2]
[385212172,1757686243716,-476.847121,0.00013972,2]
[385212173,1757686243725,-480.0,0.00013972,2]
[385212174,1757686243735,-480.0,0.00013972,2]
[385212175,1757686243745,-237.78727799,0.00013972,2]
[385212176,1757686243755,-480.0,0.00013972,2]
[385212177,1757686243764,-480.0,0.00013972,2]
[385212178,1757686243774,-480.0,0.00013972,2]
[385212179,1757686243784,-480.0,0.00013972,2]
[385212180,1757686243794,-480.0,0.00013972,2]
[385212181,1757686243803,-480.0,0.00013972,2]
[385212183,1757686243812,-480.0,0.00013972,2]
[385212184,1757686243822,-482.45430888,0.00013972,2]
[385212185,1757686243831,-480.0,0.00013972,2]
[385212186,1757686243840,-303.62836985,0.00013972,2]
[385212187,1757686243851,-480.0,0.00013972,2]
[385212188,1757686243861,-379.35977359,0.00013972,2]
[385212189,1757686243870,-480.0,0.00013972,2]
[385212190,1757686243880,-480.0,0.00013972,2]
[385212191,1757686243889,-480.0,0.00013972,2]
[385212192,1757686243898,-169.84353513,0.00013972,2]
[385212193,1757686243908,-480.0,0.00013972,2]
[385212194,1757686243917,-480.0,0.00013972,2]
[385212195,1757686243927,-480.0,0.00013972,2]
[385212196,1757686243936,-480.0,0.00013972,2]
[385212197,1757686243946,-480.0,0.00013972,2]
[385212198,1757686243955,-480.0,0.00013972,2]
[385212199,1757686243965,-480.0,0.00013972,2]
[385212200,1757686243974,-206.19,0.00013972,2]
[385212201,1757686243986,-480.0,0.00013972,2]
[385212202,1757686243995,-480.0,0.00013972,2]
[385212203,1757686244005,-480.0,0.00013972,2]
[385212204,1757686244015,-480.0,0.00013972,2]
[385212205,1757686244024,-480.0,0.00013972,2]
[385212207,1757686244034,-480.0,0.00013972,2]
[385212209,1757686244043,-480.0,0.00013972,2]
[385212211,1757686244053,-480.0,0.00013972,2]
[385212213,1757686244062,-480.0,0.00013972,2]
[385212214,1757686244071,-480.0,0.00013972,2]
[385212215,1757686244080,-480.0,0.00013972,2]
[385212216,1757686244089,-480.0,0.00013972,2]
[385212217,1757686244099,-480.0,0.00013972,2]
[385212218,1757686244108,-480.0,0.00013972,2]
[385212219,1757686244117,-480.0,0.00013972,2]
[385212220,1757686244127,-480.0,0.00013972,2]
[385212221,1757686244136,-480.0,0.00013972,2]
[385212222,1757686244145,-480.0,0.00013972,2]
[385212223,1757686244154,-480.0,0.00013972,2]
[385212224,1757686244163,-480.0,0.00013972,2]
[385212225,1757686244173,-480.0,0.00013972,2]
[385212226,1757686244183,-482.19521894,0.00013972,2]
[385212227,1757686244193,-480.0,0.00013972,2]
[385212228,1757686244203,-480.0,0.00013972,2]
[385212229,1757686244212,-480.0,0.00013972,2]
[385212230,1757686244222,-480.0,0.00013972,2]
[385212231,1757686244232,-480.0,0.00013972,2]
[385212232,1757686244242,-480.0,0.00013972,2]
[385212233,1757686244251,-548.83373958,0.00013972,2]
[385212234,1757686244262,-480.0,0.00013972,2]
[385212235,1757686244272,-480.0,0.00013972,2]
[385212236,1757686244282,-480.0,0.00013972,2]
[385212237,1757686244292,-480.0,0.00013972,2]
[385212238,1757686244302,-480.0,0.00013972,2]
[385212239,1757686244312,-618.23237294,0.00013972,2]
[385212240,1757686244322,-563.66,0.00013972,2]
[385212241,1757686244331,-480.0,0.00013972,2]
[385212243,1757686244340,-480.0,0.00013972,2]
[385212245,1757686244350,-482.91256193,0.00013972,2]
[385212247,1757686244359,-480.0,0.00013972,2]
[385212249,1757686244369,-480.0,0.00013972,2]
[385212251,1757686244378,-480.0,0.00013972,2]
[385212253,1757686244388,-480.0,0.00013972,2]
[385212255,1757686244397,-480.0,0.00013972,2]
[385212257,1757686244406,-480.0,0.00013972,2]
[385212259,1757686244415,-480.0,0.00013972,2]
[385212261,1757686244425,-480.0,0.00013972,2]
[385212263,1757686244434,-480.0,0.00013972,2]
[385212265,1757686244444,-396.25817208,0.00013972,2]
[385212267,1757686244453,-480.0,0.00013972,2]
[385212269,1757686244461,-480.0,0.00013972,2]
[385212270,1757686244471,-480.0,0.00013972,2]
[385212272,1757686244482,-480.0,0.00013972,2]
[385212274,1757686244491,-480.0,0.00013972,2]
[385212276,1757686244501,-480.0,0.00013972,2]
[385212278,1757686244511,-480.0,0.00013972,2]
[385212280,1757686244520,-480.0,0.00013972,2]
[385212282,1757686244530,-480.0,0.00013972,2]
[385212284,1757686244539,-480.0,0.00013972,2]
[385212286,1757686244548,-480.0,0.00013972,2]
[385212288,1757686244559,-480.0,0.00013972,2]
[385212290,1757686244568,-216.67611592,0.00013972,2]
[385212292,1757686244577,-480.0,0.00013972,2]
[385212294,1757686244587,-480.0,0.00013972,2]
[385212296,1757686244596,-489.14633156,0.00013972,2]
[385212298,1757686244606,-480.0,0.00013972,2]
[385212300,1757686244615,-480.0,0.00013972,2]
[385212302,1757686244624,-480.0,0.00013972,2]
[385212304,1757686244633,-480.0,0.00013972,2]
[385212306,1757686244643,-480.0,0.00013972,2]
[385212308,1757686244652,-480.0,0.00013972,2]
[385212310,1757686244662,-483.56746403,0.00013972,2]
[385212312,1757686244672,-480.0,0.00013972,2]
[385212315,1757686244681,-480.0,0.00013972,2]
[385212317,1757686244691,-480.0,0.00013972,2]
[385212318,1757686244700,-480.0,0.00013972,2]
[385212320,1757686244709,-480.0,0.00013972,2]
[385212323,1757686244719,-480.01755965,0.00013972,2]
[385212324,1757686244728,-592.80953295,0.00013972,2]
[385212326,1757686244737,-480.0,0.00013972,2]
[385212329,1757686244747,-480.0,0.00013972,2]
[385212331,1757686244757,-480.0,0.00013972,2]
[385212335,1757686244792,-616.35,0.00013972,2]
[385212337,1757686244802,-480.0,0.00013972,2]
[385212339,1757686244811,-367.84945795,0.00013972,2]
[385212341,1757686244820,-480.0,0.00013972,2]
[385212343,1757686244829,-480.0,0.00013972,2]
[385212345,1757686244839,-480.0,0.00013972,2]
[385212347,1757686244848,-480.0,0.00013972,2]
[385212349,1757686244857,-480.0,0.00013972,2]
[385212351,1757686244866,-480.0,0.00013972,2]
[385212353,1757686244876,-480.0,0.00013972,2]
[385212355,1757686244885,-480.0,0.00013972,2]
[385212357,1757686244895,-480.0,0.00013972,2]
[385212360,1757686244904,-480.0,0.00013972,2]
[385212362,1757686244914,-480.0,0.00013972,2]
[385212364,1757686244923,-480.0,0.00013972,2]
[385212366,1757686244932,-480.0,0.00013972,2]
[385212367,1757686244941,-419.41663565,0.00013972,2]
[385212369,1757686244950,-480.0,0.00013972,2]
[385212370,1757686244960,-480.0,0.00013972,2]
[385212372,1757686244969,-567.03,0.00013972,2]
[385212374,1757686244979,-480.0,0.00013972,2]
[385212376,1757686244990,-480.0,0.00013972,2]
[385212378,1757686244999,-480.0,0.00013972,2]
[385212380,1757686245008,-480.0,0.00013972,2]
[385212382,1757686245018,-480.0,0.00013972,2]
[385212384,1757686245027,-480.0,0.00013972,2]
[385212386,1757686245037,-163.43,0.00013972,2]
[385212388,1757686245046,-480.0,0.00013972,2]
[385212390,1757686245055,-480.0,0.00013972,2]
[385212392,1757686245065,-480.0,0.00013972,2]
[385212394,1757686245074,-480.0,0.00013972,2]
[385212396,1757686245083,-480.0,0.00013972,2]
[385212398,1757686245092,-480.0,0.00013972,2]
[385212400,1757686245102,-480.0,0.00013972,2]
[385212402,1757686245111,-480.0,0.00013972,2]
[385212404,1757686245120,-480.0,0.00013972,2]
[385212405,1757686245131,-480.0,0.00013972,2]
[385212406,1757686245140,-480.0,0.00013972,2]
[385212407,1757686245149,-480.0,0.00013972,2]
[385212408,1757686245159,-391.94558077,0.00013972,2]
[385212409,1757686245168,-500.0,0.00013972,2]
[385212410,1757686245178,-405.81446969,0.00013973,2]
[385212411,1757686245191,-500.0,0.00013973,2]
[385212412,1757686245201,-500.0,0.00013973,2]
[385212413,1757686245210,-100000.0,0.0001399,2]
[385212414,1757686245220,-1070.42,0.00014244,2]
[385212415,1757686245231,-480.0,0.00014246,2]
[385212416,1757686245240,-480.0,0.00014246,2]
[385212417,1757686245249,-480.0,0.00014246,2]
[385212418,1757686245261,-480.0,0.00014246,2]
[385212419,1757686245271,-480.0,0.00014246,2]
[385212420,1757686245280,-480.0,0.00014246,2]
[385212421,1757686245289,-480.0,0.00014246,2]
[385212422,1757686245298,-480.0,0.00014246,2]
[385212423,1757686245308,-480.0,0.00014246,2]
[385212424,1757686245318,-480.0,0.00014246,2]
[385212425,1757686245327,-480.0,0.00014246,2]
[385212426,1757686245336,-480.0,0.00014246,2]
[385212428,1757686245346,-480.0,0.00014246,2]
[385212430,1757686245355,-480.0,0.00014246,2]
[385212431,1757686245364,-607.68,0.00014246,2]
[385212432,1757686245373,-480.0,0.00014246,2]
[385212433,1757686245383,-480.0,0.00014246,2]
[385212435,1757686245392,-480.0,0.00014246,2]
[385212437,1757686245401,-480.0,0.00014246,2]
[385212438,1757686245410,-501.14,0.00014246,2]
[385212440,1757686245420,-480.0,0.00014246,2]
[385212442,1757686245429,-480.0,0.00014246,2]
[385212444,1757686245438,-480.0,0.00014246,2]
[385212446,1757686245449,-480.0,0.00014246,2]
[385212447,1757686245459,-480.0,0.00014246,2]
[385212449,1757686245469,-480.0,0.00014246,2]
[385212451,1757686245481,-480.0,0.00014246,2]
[385212453,1757686245490,-480.0,0.00014246,2]
[385212454,1757686245500,-480.0,0.00014246,2]
[385212455,1757686245510,-480.0,0.00014246,2]
[385212456,1757686245519,-480.0,0.00014246,2]
[385212457,1757686245529,-616.35,0.00014246,2]
[385212458,1757686245539,-480.0,0.00014246,2]
[385212459,1757686245548,-480.0,0.00014246,2]
[385212460,1757686245557,-480.0,0.00014246,2]
[385212461,1757686245567,-480.0,0.00014246,2]
[385212462,1757686245578,-480.0,0.00014246,2]
[385212463,1757686245589,-480.0,0.00014246,2]
[385212464,1757686245598,-480.0,0.00014246,2]
[385212465,1757686245608,-480.0,0.00014246,2]
[385212466,1757686245618,-500.0,0.00014246,2]
[385212467,1757686245627,-600.0,0.00014249,2]
[385212468,1757686245637,-480.0,0.0001452,2]
[385212469,1757686245647,-480.0,0.0001452,2]
[385212470,1757686245658,-243.48,0.0001452,2]
[385212471,1757686245667,-480.0,0.0001452,2]
[385212472,1757686245677,-480.0,0.0001452,2]
[385212473,1757686245687,-616.35,0.0001452,2]
[385212474,1757686245697,-480.0,0.0001452,2]
[385212475,1757686245706,-480.0,0.0001452,2]
[385212476,1757686245716,-480.0,0.0001452,2]
[385212477,1757686245725,-500.0,0.00014521,2]
[385212478,1757686245738,-480.0,0.00014794,2]
[385212479,1757686245748,-480.0,0.00014794,2]
[385212482,1757686245759,-480.0,0.00014794,2]
[385212483,1757686245769,-616.35,0.00014794,2]
[385212484,1757686245780,-480.0,0.00014794,2]
[385212485,1757686245790,-497.02,0.00014794,2]
[385212486,1757686245800,-196.72,0.00014794,2]
[385212489,1757686245811,-1070.42,0.00014904,2]
[385212491,1757686245822,-10585.41552735,0.00014905,2]
[385212493,1757686245833,-5286.94813533,0.00014959,2]
[385212495,1757686245843,-217.7145751,0.00015047,2]
[385212496,1757686245854,-233.13074058,0.00015047,2]
[385212497,1757686245864,-160.0,0.00015047,2]
[385212498,1757686245873,-417.15472785,0.00015047,2]
[385212500,1757686245883,-160.0,0.00015047,2]
[385212502,1757686245893,-160.0,0.00015047,2]
[385212504,1757686245902,-531.04384426,0.00015047,2]
[385212506,1757686245911,-847.0429734,0.00015047,2]
[385212507,1757686245921,-480.0,0.00015068,2]
[385212509,1757686245930,-157.1414778,0.00015068,2]
[385212511,1757686245939,-157.0661181,0.00015068,2]
[385212513,1757686245949,-157.09091652,0.00015068,2]
[385212515,1757686245959,-157.20307173,0.00015068,2]
[385212517,1757686245968,-157.00411875,0.00015068,2]
[385212518,1757686245979,-305.31043833,0.00015068,2]
[385212520,1757686245989,-500.0,0.00015068,2]
[385212522,1757686245999,-157.0,0.00015068,2]
[385212524,1757686246009,-157.0,0.00015068,2]
[385212526,1757686246019,-500.0,0.00015068,2]
[385212528,1757686246028,-157.0,0.00015068,2]
[385212529,1757686246037,-157.0,0.00015068,2]
[385212531,1757686246047,-157.0,0.00015068,2]
[385212533,1757686246056,-480.0,0.00015068,2]
[385212535,1757686246065,-157.11565503,0.00015068,2]
[385212537,1757686246075,-500.0,0.00015068,2]
[385212539,1757686246084,-157.0,0.00015068,2]
[385212541,1757686246094,-500.0,0.00015068,2]
[385212542,1757686246104,-157.0,0.00015068,2]
[385212544,1757686246113,-157.0,0.00015068,2]
[385212546,1757686246122,-480.0,0.00015068,2]
[385212548,1757686246132,-157.0,0.00015068,2]
[385212550,1757686246141,-157.0,0.00015068,2]
[385212552,1757686246152,-157.0,0.00015068,2]
[385212554,1757686246162,-500.0,0.00015068,2]
[385212556,1757686246172,-157.0,0.00015068,2]
[385212558,1757686246184,-248.97963686,0.00015068,2]
[385212559,1757686246195,-157.0,0.00015068,2]
[385212561,1757686246204,-500.0,0.00015068,2]
[385212563,1757686246213,-157.0,0.00015068,2]
[385212565,1757686246223,-310.71832537,0.00015068,2]
[385212566,1757686246236,-248.13637627,0.00015068,2]
[385212568,1757686246246,-505.0,0.00015068,2]
[385212570,1757686246256,-157.0,0.00015068,2]
[385212572,1757686246266,-157.0,0.00015068,2]
[385212574,1757686246276,-157.0,0.00015068,2]
[385212575,1757686246286,-157.0,0.00015068,2]
[385212577,1757686246296,-157.0,0.00015068,2]
[385212579,1757686246306,-157.0,0.00015068,2]
[385212581,1757686246316,-616.35,0.00015068,2]
[385212583,1757686246326,-480.0,0.00015068,2]
[385212585,1757686246335,-165.035238,0.00015068,2]
[385212587,1757686246345,-502.65153199,0.00015229,2]
[385212589,1757686246355,-480.0,0.00015333,2]
[385212591,1757686246364,-500.0,0.00015333,2]
[385212592,1757686246374,-500.0,0.00015333,2]
[385212594,1757686246383,-500.0,0.00015333,2]
[385212595,1757686246392,-500.0,0.00015333,2]
[385212597,1757686246402,-247.99452224,0.00015333,2]
[385212599,1757686246411,-500.0,0.00015333,2]
[385212601,1757686246421,-500.0,0.00015333,2]
[385212603,1757686246431,-500.0,0.00015342,2]
[385212605,1757686246440,-157.0,0.00015342,2]
[385212607,1757686246450,-157.0,0.00015342,2]
[385212609,1757686246459,-500.0,0.00015342,2]
[385212611,1757686246469,-157.0,0.00015342,2]
[385212613,1757686246480,-238.85481629,0.00015342,2]
[385212615,1757686246489,-157.0,0.00015342,2]
[385212617,1757686246498,-500.0,0.00015342,2]
[385212618,1757686246508,-230.03803334,0.00015342,2]
[385212620,1757686246518,-500.0,0.00015342,2]
[385212622,1757686246529,-169.20345706,0.00015342,2]
[385212624,1757686246539,-157.0,0.00015342,2]
[385212626,1757686246549,-234.97757122,0.00015342,2]
[385212627,1757686246558,-157.0,0.00015342,2]
[385212629,1757686246567,-500.0,0.00015342,2]
[385212631,1757686246577,-157.0,0.00015342,2]
[385212633,1757686246586,-157.0,0.00015342,2]
[385212635,1757686246595,-500.0,0.00015342,2]
[385212637,1757686246605,-157.0,0.00015342,2]
[385212639,1757686246614,-505.0,0.00015342,2]
[385212640,1757686246624,-157.0,0.00015342,2]
[385212642,1757686246633,-193.33159042,0.00015342,2]
[385212644,1757686246643,-157.0,0.00015342,2]
[385212646,1757686246652,-157.0,0.00015342,2]
[385212648,1757686246661,-157.0,0.00015342,2]
[385212650,1757686246671,-157.0,0.00015342,2]
[385212652,1757686246680,-480.0,0.00015342,2]
[385212654,1757686246690,-480.0,0.00015342,2]
[385212656,1757686246699,-480.0,0.00015342,2]
[385212657,1757686246708,-616.35,0.00015342,2]
[385212659,1757686246718,-480.0,0.00015342,2]
[385212661,1757686246728,-262.91719274,0.00015616,2]
[385212663,1757686246738,-157.0,0.00015616,2]
[385212666,1757686246747,-157.0,0.00015616,2]
[385212668,1757686246756,-157.0,0.00015616,2]
[385212671,1757686246766,-157.0,0.00015616,2]
[385212673,1757686246776,-500.0,0.00015616,2]
[385212675,1757686246786,-500.0,0.00015616,2]
[385212677,1757686246795,-242.20433611,0.00015616,2]
[385212679,1757686246805,-207.02705941,0.00015616,2]
[385212680,1757686246814,-326.57383559,0.00015616,2]
[385212682,1757686246824,-186.00463938,0.00015616,2]
[385212684,1757686246833,-157.0,0.00015616,2]
[385212686,1757686246843,-630.06067573,0.00015616,2]
[385212688,1757686246853,-157.0,0.00015616,2]
[385212690,1757686246862,-505.0,0.00015616,2]
[385212692,1757686246873,-157.0,0.00015616,2]
[385212694,1757686246882,-180.4832997,0.00015616,2]
[385212696,1757686246892,-157.0,0.00015616,2]
[385212698,1757686246902,-157.0,0.00015616,2]
[385212700,1757686246912,-480.0,0.00015616,2]
[385212702,1757686246922,-480.0,0.00015616,2]
[385212703,1757686246931,-480.0,0.00015616,2]
[385212705,1757686246941,-616.35,0.00015616,2]
[385212707,1757686246951,-480.0,0.00015616,2]
[385212709,1757686246961,-283.32484124,0.00015638,7]
[385212711,1757686246970,-720.0,0.00015674,2]
[385212713,1757686246982,-500.0,0.00015881,2]
[385212715,1757686246992,-500.0,0.00015881,2]
[385212717,1757686247001,-500.0,0.00015881,2]
[385212719,1757686247011,-500.0,0.00015881,2]
[385212721,1757686247021,-500.0,0.00015881,2]
[385212722,1757686247030,-500.0,0.00015881,2]
[385212724,1757686247040,-249.7417111,0.0001589,2]
[385212726,1757686247049,-500.0,0.0001589,2]
[385212728,1757686247058,-277.0918819,0.0001589,2]
[385212730,1757686247068,-157.0,0.0001589,2]
[385212732,1757686247081,-505.0,0.0001589,2]
[385212734,1757686247091,-157.0,0.0001589,2]
[385212736,1757686247101,-264.45507903,0.0001589,2]
[385212738,1757686247111,-480.0,0.0001589,2]
[385212740,1757686247121,-480.0,0.0001589,2]
[385212741,1757686247130,-157.68,0.0001589,2]
[385212743,1757686247140,-616.35,0.0001589,2]
[385212745,1757686247149,-480.0,0.0001589,2]
[385212747,1757686247159,-500.0,0.00016164,2]
[385212749,1757686247168,-254.64016978,0.00016164,2]
[385212751,1757686247179,-505.0,0.00016164,2]
[385212753,1757686247192,-284.33140433,0.00016164,2]
[385212755,1757686247202,-470.98968621,0.00016164,2]
[385212757,1757686247215,-480.0,0.00016164,2]
[385212759,1757686247224,-616.35,0.00016164,2]
[385212761,1757686247237,-480.0,0.00016164,2]
[385212763,1757686247247,-189.4,0.00016438,2]
[385212764,1757686247257,-505.0,0.00016438,2]
[385212766,1757686247268,-480.0,0.00016438,2]
[385212768,1757686247278,-616.35,0.00016438,2]
[385212770,1757686247288,-480.0,0.00016438,2]
[385212771,1757686247297,-505.0,0.00016712,2]
[385212773,1757686247307,-480.0,0.00016712,2]
[385212774,1757686247317,-616.35,0.00016712,2]
[385212776,1757686247326,-480.0,0.00016712,2]
[385212778,1757686247336,-366.70785814,0.00016986,2]
[385212779,1757686247639,-480.0,0.00013698,2]
[385212780,1757686247655,-487.67587489,0.00013698,2]
[385212781,1757686247665,-480.0,0.00013698,2]
[385212782,1757686247674,-208.61147885,0.00015067,2]
[385212783,1757686247683,-165.2905227,0.00015067,2]
[385212784,1757686247693,-138.29214186,0.00016986,2]
[385212785,1757686247702,-480.0,0.00016986,2]
[385212786,1757686247713,-616.35,0.00016986,2]
[385212787,1757686247723,-480.0,0.00016986,2]
[385212788,1757686247735,-864.0,0.00017242,2]
[385212789,1757686247744,-505.0,0.0001726,2]
[385212790,1757686247755,-480.0,0.0001726,2]
[385212791,1757686247764,-616.35,0.0001726,2]
[385212792,1757686247774,-480.0,0.0001726,2]
[385212793,1757686247784,-168.2468702,0.00017525,2]
[385212794,1757686247794,-505.0,0.00017534,2]
[385212795,1757686247804,-480.0,0.00017534,2]
[385212796,1757686247814,-616.35,0.00017534,2]
[385212797,1757686247824,-480.0,0.00017534,2]
[385212798,1757686247833,-505.0,0.00017808,2]
[385212799,1757686247843,-480.0,0.00017808,2]
[385212800,1757686247853,-616.35,0.00017808,2]
[385212801,1757686247863,-480.0,0.00017808,2]
[385212802,1757686247872,-500.0,0.00017973,2]
[385212803,1757686247882,-502.30549417,0.00017973,2]
[385212804,1757686247891,-593.05860003,0.00017973,2]
[385212805,1757686247901,-500.0,0.00017973,2]
[385212806,1757686247911,-427.50084387,0.00018066,2]
[385212807,1757686247921,-1070.42,0.00018081,2]
[385212808,1757686247936,-505.0,0.00018082,2]
[385212809,1757686247946,-480.0,0.00018082,2]
[385212810,1757686247956,-616.35,0.00018082,2]
[385212811,1757686247966,-480.0,0.00018082,2]
[385212812,1757686247975,-505.0,0.00018356,2]
[385212813,1757686247987,-480.0,0.00018356,2]
[385212814,1757686247997,-616.35,0.00018356,2]
[385212815,1757686248007,-480.0,0.00018356,2]
[385212816,1757686248017,-505.0,0.0001863,2]
[385212817,1757686248026,-412.64,0.0001863,2]
[385212818,1757686248036,-616.35,0.0001863,2]
[385212819,1757686248045,-480.0,0.0001863,2]
[385212820,1757686248054,-500.0,0.000187,2]
[385212821,1757686248063,-500.0,0.000187,2]
[385212822,1757686248073,-1070.42,0.00018903,2]
[385212823,1757686248082,-505.0,0.00018904,2]
[385212824,1757686248092,-616.35,0.00018904,2]
[385212825,1757686248101,-480.0,0.00018904,2]
[385212826,1757686248111,-505.0,0.00019178,2]
[385212827,1757686248121,-200.0,0.00019178,2]
[385212828,1757686248130,-616.35,0.00019178,2]
[385212829,1757686248140,-480.0,0.00019178,2]
[385212830,1757686248149,-505.0,0.00019452,2]
[385212831,1757686248158,-616.35,0.00019452,2]
[385212832,1757686248167,-253.11967767,0.00019452,2]
[385212833,1757686248181,-505.0,0.00019726,2]
[385212834,1757686248191,-616.35,0.00019726,2]
[385212835,1757686248200,-2756.35572225,0.000199,2]
[385212836,1757686248212,-392.96078784,0.000199,2]
[385212837,1757686248238,-5186.91623945,0.000199,2]
[385212838,1757686248248,-256.65186621,0.0002,2]
[385212839,1757686248265,-248.34813379,0.0002,2]
[385212840,1757686248275,-616.3539254,0.0002,2]
[385212841,1757686248286,-992.645586,0.00020187,2]
[385212842,1757686248295,-505.0,0.00020273,2]
[385212843,1757686248305,-287.9259399,0.00020344,2]
[385212844,1757686248314,-517.61709686,0.00020547,2]
[385212845,1757686248443,-359.204792,0.00013698,2]